bitfinex-derivatives/quotes_BTCF0:USTF0_20251120
["timestamp","ask_amount","ask_price","bid_price","bid_amount"]
[1763677667437,0.12166542,88191.0,88190.0,0.00219803]
[1763677668242,0.12166542,88191.0,88182.0,0.00017018]
[1763677668243,0.07889,88183.0,88182.0,0.00017018]
[1763677668431,0.07962267,88183.0,88182.0,0.00236821]
[1763677669444,0.07962267,88183.0,88182.0,0.00336821]
[1763677669836,0.07962267,88183.0,88182.0,0.00236821]
[1763677671537,0.07889,88171.0,88170.0,0.3608]
[1763677671745,0.07962267,88171.0,88170.0,0.00219803]
[1763677673840,0.00017018,88179.0,88178.0,0.07806]
[1763677674039,0.00017018,88179.0,88178.0,0.44105803]
[1763677676746,0.12093275,88191.0,88190.0,0.07806]
[1763677676942,0.12166542,88191.0,88190.0,0.00219803]
[1763677679642,0.12166542,88191.0,88190.0,0.03982803]
[1763677679846,0.12166542,88191.0,88190.0,0.08025803]
[1763677680153,0.05990542,88191.0,88190.0,0.08025803]
[1763677680337,0.12166542,88191.0,88190.0,0.08025803]
[1763677681140,0.01986542,88191.0,88190.0,0.08025803]
[1763677681335,0.09195986,88196.0,88195.0,0.07806]
[1763677681540,0.13273253,88196.0,88195.0,0.08025803]
[1763677681737,0.04032343,88206.0,88205.0,0.07806]
[1763677681941,0.0010161,88206.0,88205.0,0.08025803]
[1763677682141,0.05974945,88206.0,88205.0,0.08025803]
[1763677682352,0.09859945,88206.0,88205.0,0.08025803]
[1763677683454,0.09959945,88206.0,88205.0,0.08025803]
[1763677684454,0.46139945,88206.0,88205.0,0.00219803]
[1763677684646,0.46139945,88206.0,88190.0,0.3608]
[1763677684851,0.07912,88192.0,88191.0,0.15113803]
[1763677685149,0.07985267,88192.0,88191.0,0.18848803]
[1763677685741,0.07985267,88192.0,88191.0,0.07868803]
[1763677685951,0.07985267,88192.0,88191.0,0.18848803]
[1763677686156,0.08085267,88192.0,88191.0,0.18848803]
[1763677686655,0.08085267,88192.0,88191.0,0.15113803]
[1763677687045,0.08085267,88192.0,88191.0,0.11199803]
[1763677687247,0.08085267,88192.0,88191.0,0.15113803]
[1763677687551,0.08085267,88192.0,88191.0,0.00219803]
[1763677688651,0.07985267,88192.0,88191.0,0.00219803]
[1763677689254,0.07985267,88192.0,88191.0,0.04133803]
[1763677689454,0.07985267,88192.0,88191.0,0.00219803]
[1763677691648,0.07985267,88192.0,88191.0,0.04133803]
[1763677692049,0.07985267,88192.0,88191.0,0.00219803]
[1763677694058,0.10231267,88192.0,88191.0,0.00219803]
[1763677695250,0.03958,88190.0,88182.0,0.00017018]
[1763677695553,0.03958,88190.0,88150.0,0.24301905]
[1763677695554,0.07912,88170.0,88169.0,0.3608]
[1763677695748,0.07985267,88170.0,88169.0,0.36299803]
[1763677697258,0.17232113,88170.0,88169.0,0.36299803]
[1763677698054,0.17232113,88170.0,88169.0,0.36399803]
[1763677698458,0.17232113,88170.0,88169.0,0.36299803]
[1763677699060,0.17232113,88170.0,88169.0,0.00219803]
[1763677699455,0.07985267,88170.0,88169.0,0.00219803]
[1763677701265,0.17158545,88170.0,88169.0,0.00219803]
[1763677701459,0.07985267,88170.0,88169.0,0.00219803]
[1763677704764,0.07985267,88170.0,88169.0,0.07868803]
[1763677705359,0.16959651,88170.0,88169.0,0.07868803]
[1763677707565,0.16959651,88170.0,88169.0,0.04133803]
[1763677708071,0.16959651,88170.0,88169.0,0.00219803]
[1763677708273,0.16959651,88170.0,88169.0,0.04133803]
[1763677710069,0.16959651,88170.0,88169.0,0.07868803]
[1763677711170,0.16959651,88170.0,88169.0,0.00219803]
[1763677711565,0.16959651,88170.0,88169.0,0.04133803]
[1763677713869,0.16959651,88170.0,88169.0,0.00219803]
[1763677714569,0.16959651,88170.0,88169.0,0.03653803]
[1763677715372,0.16959651,88170.0,88169.0,0.00219803]
[1763677715976,0.16959651,88170.0,88169.0,0.03653803]
[1763677716272,0.16959651,88170.0,88169.0,0.07123803]
[1763677718178,0.00016985,88178.0,88177.0,0.06904]
[1763677718375,0.00016985,88178.0,88177.0,0.54175803]
[1763677718677,0.03348985,88178.0,88177.0,0.43203803]
[1763677718866,0.03348985,88178.0,88177.0,0.54175803]
[1763677719265,0.06628985,88178.0,88177.0,0.54175803]
[1763677722274,0.06702252,88178.0,88177.0,0.54375803]
[1763677723290,0.06702252,88178.0,88177.0,0.54275803]
[1763677723578,0.06702252,88178.0,88177.0,0.54375803]
[1763677724481,0.03422252,88178.0,88177.0,0.54375803]
[1763677724682,0.00090252,88178.0,88177.0,0.54375803]
[1763677725075,0.00016985,88178.0,88177.0,0.54375803]
[1763677725279,0.08151981,88190.0,88189.0,0.06904]
[1763677725579,0.06612,88191.0,88190.0,0.06904]
[1763677725774,0.06685267,88191.0,88190.0,0.07123803]
[1763677728179,0.03405267,88191.0,88190.0,0.07123803]
[1763677728378,0.06612,88191.0,88190.0,0.07123803]
[1763677729084,0.08721,88200.0,88199.0,0.06904]
[1763677729288,0.08794267,88200.0,88199.0,0.18095803]
[1763677730387,0.00073267,88200.0,88199.0,0.18095803]
[1763677730984,0.01897678,88206.0,88205.0,0.06904]
[1763677730985,0.08509678,88206.0,88205.0,0.06904]
[1763677731286,0.08582945,88206.0,88205.0,0.43203803]
[1763677732089,0.08682945,88206.0,88205.0,0.43203803]
[1763677733186,0.05402945,88206.0,88205.0,0.43203803]
[1763677733484,0.08682945,88206.0,88205.0,0.43203803]
[1763677733680,0.08682945,88206.0,88205.0,0.3608]
[1763677733876,0.06612,88198.0,88197.0,0.3608]
[1763677734076,0.06685267,88198.0,88197.0,0.47271803]
[1763677734475,0.06685267,88198.0,88197.0,0.50705803]
[1763677734677,0.06685267,88198.0,88197.0,0.54175803]
[1763677734883,0.06685267,88198.0,88197.0,0.43203803]
[1763677735088,0.06685267,88198.0,88197.0,0.36299803]
[1763677735283,0.06685267,88198.0,88197.0,0.47271803]
[1763677736586,0.06685267,88198.0,88197.0,0.11191803]
[1763677737285,0.06612,88190.0,88189.0,0.3608]
[1763677737492,0.06685267,88190.0,88189.0,0.50705803]
[1763677737786,0.06685267,88190.0,88189.0,0.54175803]
[1763677738384,0.00073267,88190.0,88189.0,0.54175803]
[1763677738689,0.06685267,88190.0,88189.0,0.43203803]
[1763677738881,0.06685267,88190.0,88189.0,0.54175803]
[1763677739081,0.00073267,88190.0,88189.0,0.54175803]
[1763677740285,0.03332,88200.0,88199.0,0.06904]
[1763677740478,0.06685267,88200.0,88199.0,0.54175803]
[1763677740678,0.08794267,88200.0,88199.0,0.54175803]
[1763677741176,0.08794267,88200.0,88199.0,0.36299803]
[1763677741377,0.08794267,88200.0,88199.0,0.54175803]
[1763677741577,0.08794267,88200.0,88199.0,0.47271803]
[1763677742281,0.06612,88200.0,88199.0,0.47271803]
[1763677742486,0.06612,88200.0,88199.0,0.53583803]
[1763677742879,0.06612,88200.0,88199.0,0.17503803]
[1763677743482,0.08368018,88206.0,88205.0,0.06312]
[1763677743682,0.08368018,88206.0,88205.0,0.06531803]
[1763677744796,0.08468018,88206.0,88205.0,0.00219803]
[1763677745877,0.08568018,88206.0,88205.0,0.00219803]
[1763677746283,0.08568018,88206.0,88205.0,0.03202803]
[1763677746578,0.08568018,88206.0,88205.0,0.00219803]
[1763677746983,0.00016,88206.0,88205.0,0.00219803]
[1763677747483,0.01901138,88206.0,88205.0,0.00219803]
[1763677747678,0.00016,88198.0,88197.0,0.3608]
[1763677747892,0.00016,88198.0,88197.0,0.36299803]
[1763677748188,0.00016,88198.0,88197.0,0.39282803]
[1763677748495,0.00016,88198.0,88197.0,0.42611803]
[1763677749291,8e-05,88198.0,88197.0,0.42611803]
[1763677749493,0.00016,88198.0,88197.0,0.42611803]
[1763677749691,8e-05,88198.0,88197.0,0.42611803]
[1763677749887,0.3608,88204.0,88203.0,0.06312]
[1763677750088,0.01885138,88206.0,88205.0,0.06312]
[1763677750289,0.10008794,88212.0,88211.0,0.06312]
[1763677750593,0.00016,88204.0,88203.0,0.00017008]
[1763677750795,0.36096,88204.0,88203.0,0.00236811]
[1763677750996,0.36096,88204.0,88203.0,0.03219811]
[1763677751694,0.36096,88204.0,88203.0,0.00236811]
[1763677752097,0.36096,88204.0,88203.0,0.06548811]
[1763677752595,0.00016,88204.0,88203.0,0.06548811]
[1763677753398,0.11831858,88212.0,88211.0,0.06221931]
[1763677753587,0.11831858,88212.0,88211.0,0.06441734]
[1763677756499,0.02974409,88212.0,88211.0,0.06441734]
[1763677757792,0.01016,88212.0,88211.0,0.06441734]
[1763677757990,0.01008,88212.0,88211.0,0.06441734]
[1763677759798,0.02971294,88212.0,88211.0,0.06441734]
[1763677760399,0.02963294,88212.0,88211.0,0.06441734]
[1763677761291,0.03061294,88212.0,88211.0,0.06441734]
[1763677761492,0.02963294,88212.0,88211.0,0.06441734]
[1763677761985,0.03159294,88212.0,88211.0,0.06441734]
[1763677762189,0.02963294,88212.0,88211.0,0.06441734]
[1763677762589,0.03061294,88212.0,88211.0,0.06441734]
[1763677764493,0.02963294,88212.0,88211.0,0.06441734]
[1763677765598,0.03159294,88212.0,88211.0,0.06441734]
[1763677765798,0.03061294,88212.0,88211.0,0.06441734]
[1763677766198,0.03159294,88212.0,88211.0,0.06441734]
[1763677767299,0.02159294,88212.0,88211.0,0.06441734]
[1763677767906,0.02061294,88212.0,88211.0,0.06441734]
[1763677768101,0.01963294,88212.0,88211.0,0.06441734]
[1763677768313,0.10410971,88219.0,88218.0,0.06312]
[1763677768899,0.00196,88212.0,88211.0,0.00219803]
[1763677769103,0.00196,88212.0,88211.0,0.06531803]
[1763677770908,0.00196,88212.0,88211.0,0.00219803]
[1763677771207,0.00196,88204.0,88203.0,0.06329008]
[1763677771409,0.36276,88204.0,88203.0,0.06548811]
[1763677772799,0.3608,88204.0,88203.0,0.06548811]
[1763677773815,0.36474,88204.0,88203.0,0.06548811]
[1763677774213,0.36868,88204.0,88203.0,0.06548811]
[1763677775512,0.00394,88204.0,88203.0,0.06548811]
[1763677775914,0.08954755,88211.0,88210.0,0.06421]
[1763677776108,0.00788,88211.0,88210.0,0.06640803]
[1763677777112,0.08166755,88213.0,88212.0,0.06421]
[1763677777309,0.08560755,88213.0,88212.0,0.06640803]
[1763677777503,0.01904744,88219.0,88218.0,0.06421]
[1763677777705,0.36868,88227.0,88226.0,0.06421]
[1763677777905,0.36868,88227.0,88226.0,0.06640803]
[1763677778098,0.36868,88227.0,88226.0,0.03296803]
[1763677778297,0.38782524,88227.0,88226.0,0.00219803]
[1763677778498,0.00348,88208.0,88207.0,0.08424]
[1763677778713,0.00567803,88208.0,88207.0,0.08497267]
[1763677779007,0.00393803,88208.0,88207.0,0.08497267]
[1763677779614,0.00219803,88208.0,88207.0,0.08497267]
[1763677782312,0.00219803,88208.0,88207.0,0.08597267]
[1763677782818,0.00219803,88208.0,88207.0,0.08497267]
[1763677783118,0.00567803,88208.0,88207.0,0.08497267]
[1763677784316,0.00348,88214.0,88213.0,0.06421]
[1763677784621,0.00348,88214.0,88213.0,0.06640803]
[1763677791806,0.15458119,88220.0,88219.0,0.06421]
[1763677792006,0.72368863,88227.0,88226.0,0.06421]
[1763677792212,0.75712863,88227.0,88226.0,0.04794752]
[1763677793720,0.75712863,88227.0,88226.0,0.00219803]
[1763677794418,0.61447553,88227.0,88226.0,0.00219803]
[1763677794623,0.03344,88222.0,88221.0,0.06421]
[1763677794927,0.03344,88215.0,88214.0,0.44504]
[1763677795130,0.03344,88215.0,88214.0,0.44723803]
[1763677795324,0.48556181,88224.0,88223.0,0.06421]
[1763677795518,0.14295943,88225.0,88224.0,0.08424]
[1763677795827,0.15967943,88225.0,88224.0,0.08643803]
[1763677796023,0.17639943,88225.0,88224.0,0.08643803]
[1763677799325,0.14295943,88225.0,88224.0,0.08643803]
[1763677799514,0.64775496,88227.0,88226.0,0.06421]
[1763677799831,0.64775496,88227.0,88226.0,0.06640803]
[1763677800424,0.50479553,88227.0,88226.0,0.06640803]
[1763677802326,0.37994524,88227.0,88226.0,0.06640803]
[1763677802728,0.01914524,88227.0,88226.0,0.06640803]
[1763677802927,0.32572062,88236.0,88235.0,0.06075]
[1763677803231,0.02818,88236.0,88235.0,0.06294803]
[1763677803930,0.40940625,88236.0,88235.0,0.00219803]
[1763677804724,0.02818,88228.0,88227.0,0.00017008]
[1763677804934,0.38898,88228.0,88227.0,0.00017008]
[1763677805132,0.02818,88215.0,88214.0,0.05022]
[1763677805330,0.02818,88215.0,88214.0,0.08297803]
[1763677806633,0.4628825,88219.0,88206.0,0.07997008]
[1763677806634,0.02818,88207.0,88206.0,0.07997008]
[1763677806933,0.02818,88207.0,88206.0,0.00236811]
[1763677807318,0.13028216,88207.0,88206.0,0.00236811]
[1763677808432,0.02818,88207.0,88206.0,0.00236811]
[1763677808727,0.02818,88195.0,88194.0,0.04924]
[1763677808933,0.02818,88195.0,88194.0,0.08199803]
[1763677811324,0.02818,88190.0,88189.0,0.00278141]
[1763677811533,0.02818,88190.0,88165.0,0.01905]
[1763677811534,0.02784,88169.0,88168.0,0.39099]
[1763677811732,0.02784,88169.0,88168.0,0.42374803]
[1763677812033,0.02784,88169.0,88168.0,0.06294803]
[1763677812435,0.02784,88169.0,88168.0,0.00219803]
[1763677812738,0.10968,88175.0,88139.0,0.3608]
[1763677812739,0.02694,88148.0,88139.0,0.3608]
[1763677812929,0.02694,88145.0,88144.0,0.0798]
[1763677813238,0.02694,88145.0,88144.0,0.08199803]
[1763677814428,0.04639083,88145.0,88144.0,0.00219803]
[1763677814635,0.04639083,88145.0,88144.0,0.00419803]
[1763677815031,0.04639083,88145.0,88144.0,0.00619803]
[1763677815339,0.40719083,88145.0,88144.0,0.004]
[1763677815533,0.40719083,88145.0,88136.0,0.00017018]
[1763677815534,0.02294,88137.0,88136.0,0.00017018]
[1763677815831,0.49342,88137.0,88136.0,0.00017018]
[1763677816623,0.49342,88137.0,88136.0,0.06311821]
[1763677816828,0.03839083,88145.0,88144.0,0.06075]
[1763677817034,0.03839083,88145.0,88144.0,0.00219803]
[1763677817332,0.01945083,88145.0,88144.0,0.06294803]
[1763677817540,0.15465446,88160.0,88152.0,0.06075]
[1763677817738,0.02019585,88153.0,88152.0,0.06294803]
[1763677817930,0.00017018,88153.0,88152.0,0.06294803]
[1763677818730,0.02882794,88153.0,88152.0,0.06294803]
[1763677818935,0.02882794,88153.0,88152.0,0.06494803]
[1763677820036,0.01935794,88153.0,88152.0,0.06494803]
[1763677820534,0.01935794,88153.0,88152.0,0.06694803]
[1763677820734,0.3608,88179.0,88169.0,0.06075]
[1763677820940,0.3608,88179.0,88178.0,0.06075]
[1763677820941,0.38939,88179.0,88178.0,0.06075]
[1763677821141,0.3608,88187.0,88186.0,0.06075]
[1763677821337,0.43739784,88187.0,88186.0,0.06294803]
[1763677821632,0.05718,88181.0,88180.0,0.01905]
[1763677822137,0.05718,88181.0,88178.0,0.00017018]
[1763677822138,0.05718,88179.0,88178.0,0.00017018]
[1763677822333,0.41798,88179.0,88178.0,0.00236821]
[1763677822734,0.41798,88179.0,88178.0,0.00017018]
[1763677823132,0.05718,88170.0,88169.0,0.002]
[1763677823336,0.41798,88170.0,88169.0,0.06394803]
[1763677823535,0.41798,88170.0,88169.0,0.06294803]
[1763677823733,0.60398041,88179.0,88175.0,0.06075]
[1763677823734,0.02859,88176.0,88175.0,0.06075]
[1763677823939,0.60398041,88179.0,88178.0,0.06075]
[1763677823940,0.5277,88179.0,88178.0,0.06075]
[1763677824241,0.3608,88179.0,88178.0,0.06294803]
[1763677824432,0.41798,88179.0,88178.0,0.06294803]
[1763677824740,0.3608,88179.0,88178.0,0.06294803]
[1763677825142,0.41798,88179.0,88178.0,0.03238803]
[1763677825344,0.41798,88179.0,88178.0,0.06294803]
[1763677825544,0.3608,88179.0,88178.0,0.06294803]
[1763677827841,0.24318041,88185.0,88184.0,0.06075]
[1763677828045,0.01941784,88187.0,88186.0,0.06075]
[1763677828245,0.5277,88191.0,88190.0,0.03019]
[1763677828440,0.5277,88191.0,88190.0,0.03238803]
[1763677828642,0.54722618,88191.0,88190.0,0.03238803]
[1763677828845,0.54722618,88191.0,88190.0,0.06294803]
[1763677829442,0.54722618,88191.0,88190.0,0.00219803]
[1763677830454,0.54722618,88191.0,88190.0,0.08199803]
[1763677832656,0.54722618,88191.0,88190.0,0.02124803]
[1763677833555,0.04042,88177.0,88176.0,0.01905]
[1763677833852,0.04042,88177.0,88176.0,0.07739803]
[1763677835055,0.04042,88177.0,88176.0,0.00219803]
[1763677835353,0.04042,88171.0,88170.0,0.00017018]
[1763677835554,0.04042,88171.0,88170.0,0.00236821]
[1763677836265,0.04042,88171.0,88170.0,0.01871821]
[1763677836462,0.04042,88171.0,88170.0,0.01971821]
[1763677836658,0.04042,88171.0,88170.0,0.04768821]
[1763677838267,0.04042,88171.0,88170.0,0.07686821]
[1763677844768,0.04042,88171.0,88170.0,0.00436821]
[1763677845074,0.04042,88171.0,88170.0,0.00217018]
[1763677846171,0.04042,88171.0,88170.0,0.00436821]
[1763677846473,0.04042,88161.0,88160.0,0.0752]
[1763677846673,0.12323842,88161.0,88160.0,0.07686702]
[1763677847477,0.04168368,88161.0,88160.0,0.07686702]
[1763677847658,0.04168368,88161.0,88160.0,0.00266702]
[1763677848057,0.04168368,88161.0,88160.0,0.07516702]
[1763677848770,0.21347285,88167.0,88160.0,0.07616702]
[1763677849574,0.3838094,88167.0,88160.0,0.07616702]
[1763677849762,0.3838094,88167.0,88160.0,0.07516702]
[1763677850067,0.08159796,88164.0,88160.0,0.04698702]
[1763677850468,0.08159796,88161.0,88160.0,0.04598702]
[1763677850771,0.08159796,88161.0,88160.0,0.02001702]
[1763677851272,0.08159796,88162.0,88160.0,0.07516702]
[1763677851472,0.08159796,88162.0,88160.0,0.07616702]
[1763677851659,0.08159796,88162.0,88160.0,0.07516702]
[1763677851971,0.08159796,88161.0,88160.0,0.07616702]
[1763677852367,0.30221144,88167.0,88160.0,0.07616702]
[1763677852368,0.08159796,88162.0,88161.0,0.05615]
[1763677852568,0.08159796,88162.0,88161.0,0.05834803]
[1763677853771,0.19131796,88162.0,88161.0,0.00319803]
[1763677854163,0.19131796,88162.0,88161.0,0.05934803]
[1763677854572,0.19131796,88162.0,88161.0,0.03016803]
[1763677854876,0.10972,88162.0,88161.0,0.05934803]
[1763677855175,0.10972,88162.0,88161.0,0.06034803]
[1763677858168,0.30221144,88167.0,88165.0,0.01635]
[1763677858475,0.30221144,88167.0,88166.0,0.00219803]
[1763677858672,0.41193144,88167.0,88166.0,0.00219803]
[1763677859476,0.51387487,88167.0,88166.0,0.00219803]
[1763677859865,0.51387487,88167.0,88166.0,0.00319803]
[1763677860371,0.51387487,88167.0,88166.0,0.001]
[1763677860574,0.41193144,88167.0,88152.0,0.02714018]
[1763677860774,0.3608,88153.0,88152.0,0.00017018]
[1763677860978,0.47052,88153.0,88152.0,0.00017018]
[1763677861365,0.57247106,88153.0,88152.0,0.00017018]
[1763677861973,0.57247106,88153.0,88152.0,0.00217018]
[1763677862173,0.57247106,88153.0,88152.0,0.00436821]
[1763677862478,0.57249381,88153.0,88152.0,0.05999821]
[1763677862681,0.47052,88153.0,88152.0,0.05999821]
[1763677863067,0.10197381,88154.0,88153.0,0.05521]
[1763677863271,0.10197381,88160.0,88159.0,0.05521]
[1763677863472,0.10972,88163.0,88162.0,0.05521]
[1763677863672,0.10972,88163.0,88162.0,0.05740803]
[1763677864369,0.10972,88163.0,88162.0,0.00219803]
[1763677864578,0.10972,88163.0,88162.0,0.05740803]
[1763677864884,0.10972,88163.0,88162.0,0.05840803]
[1763677864885,0.21169381,88163.0,88162.0,0.05840803]
[1763677865177,0.10972,88163.0,88162.0,0.05840803]
[1763677865374,0.21174367,88163.0,88162.0,0.05840803]
[1763677866082,0.21174367,88163.0,88162.0,0.05940803]
[1763677866581,0.10972,88163.0,88162.0,0.05940803]
[1763677866983,0.30221144,88167.0,88166.0,0.05521]
[1763677867182,0.41193144,88167.0,88166.0,0.05740803]
[1763677867578,0.30221144,88167.0,88166.0,0.05740803]
[1763677867775,0.41193144,88167.0,88166.0,0.05740803]
[1763677867976,0.30221144,88167.0,88166.0,0.05740803]
[1763677868183,0.41193144,88167.0,88166.0,0.05740803]
[1763677868379,0.30221144,88167.0,88166.0,0.05840803]
[1763677868685,0.41193144,88167.0,88166.0,0.05840803]
[1763677869084,0.30221144,88167.0,88166.0,0.00319803]
[1763677869284,0.41193144,88167.0,88166.0,0.00319803]
[1763677869597,0.41193144,88167.0,88166.0,0.00419803]
[1763677870786,0.41412947,88167.0,88166.0,0.0009299]
[1763677870984,0.41412947,88167.0,88166.0,0.0274799]
[1763677871284,0.41412947,88167.0,88166.0,0.05687257]
[1763677871485,0.09093662,88167.0,88166.0,0.05687257]
[1763677872088,0.20065662,88167.0,88166.0,0.00166257]
[1763677872292,0.20065662,88167.0,88166.0,0.05687257]
[1763677872986,0.09093662,88167.0,88166.0,0.05687257]
[1763677873182,0.20065662,88167.0,88166.0,0.05687257]
[1763677874580,0.20065662,88167.0,88166.0,0.02821257]
[1763677874785,0.56145662,88167.0,88166.0,0.0009299]
[1763677875986,0.45173662,88167.0,88166.0,0.05687257]
[1763677876185,0.20065662,88167.0,88166.0,0.05687257]
[1763677876490,0.09093662,88167.0,88166.0,0.05687257]
[1763677876689,0.20065662,88167.0,88166.0,0.05687257]
[1763677879993,0.00219803,88167.0,88166.0,0.05687257]
[1763677880194,0.00219803,88167.0,88166.0,0.41767257]
[1763677881091,0.08391737,88167.0,88166.0,0.41767257]
[1763677881396,0.00202793,88167.0,88166.0,0.41767257]
[1763677882390,0.00017018,88169.0,88168.0,0.05521]
[1763677882590,0.01737,88200.0,88179.0,0.07203]
[1763677882895,0.16487,88186.0,88185.0,0.05521]
[1763677883085,0.25811461,88186.0,88185.0,0.05611277]
[1763677883286,0.11174792,88186.0,88185.0,0.05611277]
[1763677883796,0.16689792,88186.0,88185.0,0.05611277]
[1763677885399,0.05717792,88186.0,88185.0,0.05611277]
[1763677886084,0.00202792,88186.0,88185.0,0.05611277]
[1763677887489,0.07459144,88191.0,88190.0,0.05521]
[1763677887688,0.07661936,88191.0,88190.0,0.05611277]
[1763677888696,0.07761936,88191.0,88190.0,0.05611277]
[1763677891818,0.02246936,88191.0,88190.0,0.05611277]
[1763677892008,0.12960695,88191.0,88190.0,0.05611277]
[1763677892520,0.02246936,88191.0,88190.0,0.05611277]
[1763677892825,0.04739936,88191.0,88190.0,0.05611277]
[1763677894016,0.02246936,88191.0,88190.0,0.05611277]
[1763677894608,0.02044144,88191.0,88190.0,0.05611277]
[1763677894819,0.00017018,88194.0,88193.0,0.0571]
[1763677895012,0.00017018,88194.0,88193.0,0.05800277]
[1763677895811,0.02002928,88194.0,88193.0,0.05800277]
[1763677896306,0.02102928,88194.0,88193.0,0.05800277]
[1763677897115,0.02102928,88194.0,88193.0,0.16768277]
[1763677901324,0.01143449,88194.0,88193.0,0.16768277]
[1763677901627,0.29185904,88201.0,88200.0,0.05832]
[1763677901918,0.00028343,88206.0,88205.0,0.05294]
[1763677902125,0.00028343,88206.0,88205.0,0.05384277]
[1763677902319,0.02521343,88206.0,88205.0,0.05384277]
[1763677902522,0.00028343,88206.0,88205.0,0.05384277]
[1763677903517,0.00128343,88206.0,88205.0,0.05384277]
[1763677903717,0.04600296,88206.0,88205.0,0.05384277]
[1763677903919,0.02621343,88206.0,88205.0,0.05384277]
[1763677904520,0.02721343,88206.0,88205.0,0.05384277]
[1763677906026,0.07536273,88206.0,88205.0,0.05384277]
[1763677907315,0.04919273,88206.0,88205.0,0.05384277]
[1763677908119,0.07333481,88206.0,88205.0,0.05384277]
[1763677908332,0.07536273,88206.0,88205.0,0.05384277]
[1763677911238,0.02426273,88206.0,88205.0,0.05384277]
[1763677911530,0.04716481,88206.0,88205.0,0.05384277]
[1763677911828,0.02223481,88206.0,88205.0,0.05384277]
[1763677912836,0.00017007,88214.0,88213.0,0.05294]
[1763677913129,0.00017007,88214.0,88213.0,0.52428277]
[1763677913330,7e-08,88214.0,88213.0,0.52428277]
[1763677913531,0.26427925,88230.0,88229.0,0.05294]
[1763677913735,0.07305393,88230.0,88229.0,0.41464277]
[1763677914236,0.04688393,88230.0,88229.0,0.41464277]
[1763677914433,0.01992601,88230.0,88229.0,0.41464277]
[1763677914625,0.06666,88235.0,88234.0,0.05294]
[1763677914825,0.06666,88235.0,88234.0,0.05384277]
[1763677915427,0.086886,88235.0,88234.0,0.05384277]
[1763677915633,0.071326,88235.0,88234.0,0.05384277]
[1763677915840,0.00017007,88238.0,88234.0,0.05384277]
[1763677915841,0.00017007,88238.0,88237.0,0.05294]
[1763677916135,7e-08,88238.0,88237.0,0.41464277]
[1763677916337,0.0002833,88246.0,88237.0,0.36170277]
[1763677916534,0.0002833,88246.0,88245.0,0.3608]
[1763677916832,0.01987576,88246.0,88245.0,0.47134277]
[1763677917439,0.00016999,88254.0,88245.0,0.47134277]
[1763677917740,4.57e-06,88256.0,88253.0,0.7216]
[1763677917937,0.04049,88270.0,88255.0,0.00090277]
[1763677918240,0.03565537,88270.0,88269.0,0.7216]
[1763677918437,0.03565537,88270.0,88269.0,0.83214277]
[1763677919339,0.02109537,88270.0,88269.0,0.83214277]
[1763677919640,0.00885486,88279.0,88269.0,0.83214277]
[1763677920134,0.01946005,88277.0,88269.0,0.83214277]
[1763677920439,0.001,88270.0,88269.0,0.83214277]
[1763677920624,0.00885486,88279.0,88269.0,0.83214277]
[1763677920625,0.02855508,88279.0,88269.0,0.83214277]
[1763677920830,0.19325324,88310.0,88278.0,0.3608]
[1763677921029,0.05341109,88286.0,88285.0,0.36170277]
[1763677921527,0.07294563,88286.0,88285.0,0.47130277]
[1763677921734,0.01981771,88286.0,88285.0,0.47130277]
[1763677922043,0.02181771,88286.0,88285.0,0.47130277]
[1763677922840,0.19325324,88320.0,88285.0,0.47130277]
[1763677923033,0.07161792,88304.0,88303.0,0.7216]
[1763677923235,0.09125896,88304.0,88303.0,0.83210277]
[1763677924232,0.09225896,88304.0,88303.0,0.83210277]
[1763677924737,0.09225896,88304.0,88303.0,0.72250277]
[1763677925131,0.02064104,88304.0,88303.0,0.72250277]
[1763677925338,0.05403,88304.0,88303.0,0.72250277]
[1763677925633,0.07394638,88304.0,88303.0,0.72250277]
[1763677925833,0.05403,88291.0,88290.0,0.3608]
[1763677926029,0.05403,88291.0,88290.0,0.00219803]
[1763677926234,0.04304,88299.0,88290.0,0.47255803]
[1763677926441,0.04304,88299.0,88298.0,0.3608]
[1763677926642,0.06991,88299.0,88298.0,0.47255803]
[1763677927240,0.01991638,88304.0,88298.0,0.47255803]
[1763677927438,0.01588,88300.0,88298.0,0.47255803]
[1763677927937,0.01588,88300.0,88298.0,0.47355803]
[1763677929240,0.01947655,88304.0,88298.0,0.47355803]
[1763677929448,0.19325324,88330.0,88303.0,0.3608]
[1763677929640,0.19325324,88320.0,88311.0,0.36299803]
[1763677929841,0.19325324,88320.0,88311.0,0.47255803]
[1763677930146,0.04272,88312.0,88311.0,0.47255803]
[1763677931748,0.06214328,88312.0,88311.0,0.47255803]
[1763677932042,0.01942328,88312.0,88311.0,0.47255803]
[1763677932249,0.06991,88317.0,88311.0,0.47255803]
[1763677934133,0.01967763,88317.0,88311.0,0.47255803]
[1763677934338,0.05403,88314.0,88313.0,0.3608]
[1763677934551,0.05403,88314.0,88313.0,0.47251803]
[1763677937454,0.03594606,88317.0,88313.0,0.47251803]
[1763677937651,0.03594606,88317.0,88316.0,0.3608]
[1763677937847,0.06310606,88317.0,88316.0,0.36299803]
[1763677938349,0.08997606,88317.0,88316.0,0.36299803]
[1763677939148,0.03594606,88317.0,88316.0,0.36299803]
[1763677939455,0.08997606,88317.0,88316.0,0.36299803]
[1763677939651,0.02006606,88317.0,88316.0,0.36299803]
[1763677939847,0.01616304,88326.0,88316.0,0.36399803]
[1763677940153,0.01616304,88326.0,88325.0,0.3608]
[1763677940345,0.01616304,88326.0,88325.0,0.47251803]
[1763677940346,0.03559932,88326.0,88325.0,0.47251803]
[1763677940547,0.08962932,88326.0,88325.0,0.36299803]
[1763677940740,0.39639932,88326.0,88317.0,0.3608]
[1763677940946,0.05403,88318.0,88317.0,0.00219803]
[1763677941454,0.05403,88318.0,88317.0,0.05334803]
[1763677941655,0.05403,88318.0,88317.0,0.02731803]
[1763677941854,0.05403,88318.0,88317.0,0.00219803]
[1763677942752,0.06991,88317.0,88316.0,0.001]
[1763677943457,0.05403,88309.0,88308.0,0.3608]
[1763677943752,0.05403,88309.0,88308.0,0.36299803]
[1763677944050,0.05403,88309.0,88308.0,0.41414803]
[1763677944254,0.06991,88317.0,88316.0,0.05115]
[1763677944552,0.06991,88317.0,88316.0,0.00219803]
[1763677944748,0.05403,88309.0,88308.0,0.38592]
[1763677944948,0.05403,88309.0,88308.0,0.36299803]
[1763677945250,0.05403,88306.0,88305.0,0.00016987]
[1763677945457,0.05403,88291.0,88290.0,0.3608]
[1763677945647,0.05403,88291.0,88290.0,0.00219803]
[1763677945845,0.05403,88269.0,88268.0,0.41195]
[1763677946143,0.05403,88269.0,88268.0,0.36299803]
[1763677946555,0.05403,88269.0,88261.0,0.3608]
[1763677946556,0.05403,88262.0,88261.0,0.3608]
[1763677946853,0.05403,88262.0,88261.0,0.36299803]